fUSD/lending_fUSD_20240109
["ID","MTS","AMOUNT","RATE_DAILY","PERIOD"]
[310981212,1704839359728,-161.94,0.00032966,2]
[310981213,1704839359752,-550.0,0.00033,3]
[310981214,1704839359775,-161.94,0.00033174,2]
[310981215,1704839359798,-161.94,0.00033383,2]
[310981216,1704839359821,-382.96632065,0.0003349,2]
[310981217,1704839359844,-382.96632065,0.0003349,2]
[310981218,1704839359869,-673.83,0.000335,2]
[310981219,1704839359897,-673.83,0.000335,2]
[310981220,1704839359924,-673.83,0.000335,2]
[310981221,1704839359948,-673.83,0.000335,2]
[310981222,1704839359977,-673.83,0.000335,2]
[310981223,1704839360002,-673.83,0.000335,2]
[310981224,1704839360028,-673.83,0.000335,2]
[310981225,1704839360055,-673.83,0.000335,2]
[310981226,1704839360081,-673.83,0.000335,2]
[310981227,1704839360107,-673.83,0.000335,2]
[310981228,1704839360134,-673.83,0.000335,2]
[310981229,1704839360162,-673.83,0.000335,2]
[310981231,1704839360190,-673.83,0.000335,2]
[310981232,1704839360216,-673.83,0.000335,2]
[310981233,1704839360242,-673.83,0.000335,2]
[310981235,1704839360268,-673.83,0.000335,2]
[310981236,1704839360293,-673.83,0.000335,2]
[310981237,1704839360318,-673.83,0.000335,2]
[310981238,1704839360344,-673.83,0.000335,2]
[310981239,1704839360369,-673.83,0.000335,2]
[310981240,1704839360393,-161.94,0.00033592,2]
[310981241,1704839360416,-200.0,0.00033636,2]
[310981242,1704839360436,-161.94,0.00033801,2]
[310981243,1704839361143,-156.37387414,0.00033903,2]
[310981244,1704839361203,-1000.0,0.00034,4]
[310981245,1704839361223,-165.05,0.00034166,2]
[310981246,1704839361244,-173.05,0.00034408,2]
[310981247,1704839361265,-382.96632065,0.0003451,2]
[310981248,1704839361288,-3160.780771,0.0003452,2]
[310981249,1704839361308,-2385.91,0.00034521,2]
[310981250,1704839361329,-277.68,0.00034521,2]
[310981251,1704839361349,-2000.0,0.00034602,2]
[310981252,1704839361370,-382.96632065,0.00034624,2]
[310981253,1704839361390,-2194.93,0.00034634,2]
[310981254,1704839361413,-4741.171157,0.00034794,2]
[310981255,1704839361438,-156.37387414,0.00034914,2]
[310981256,1704839361459,-382.96632065,0.00034921,2]
[310981257,1704839361479,-654.709961,0.00034931,2]
[310981258,1704839361499,-6321.561543,0.00034931,2]
[310981259,1704839361520,-600.0,0.00035,3]
[310981260,1704839361541,-382.96632065,0.00035058,2]
[310981261,1704839361566,-818.387451,0.00035068,2]
[310981262,1704839361589,-7901.951928,0.00035068,2]
[310981263,1704839361610,-382.96632065,0.0003509,2]
[310981264,1704839361631,-366.00298093,0.000351,2]
[310981326,1704839432088,-832.0122883,0.00022899,2]
[310981327,1704839432148,-850.67041753,0.00022899,2]
[310981328,1704839432157,-150.0,0.000245,2]
[310981329,1704839432166,-4784.011943,0.00025899,2]
[310981330,1704839432280,-5669.07883189,0.00025899,2]
[310981331,1704839432289,-2124.52455767,0.00035098,2]
[310981332,1704839432298,-1634.67371112,0.00035099,4]
[310981333,1704839432307,-383.99701907,0.000351,2]
[310981334,1704839432316,-9620.12645151,0.00035184,2]
[310981335,1704839432325,-151.99,0.00035321,2]
[310981336,1704839432334,-3295.85238495,0.00035341,7]
[310981337,1704839432345,-2283.65,0.00035341,7]
[310981338,1704839432368,-457.52,0.00035341,7]
[310981351,1704839432541,-1009.752744,0.00035341,7]
[310981386,1704839438730,-10955.02777105,0.00035341,7]
[310981388,1704839438741,-1145.742432,0.00035342,2]
[310981390,1704839438752,-11062.7327,0.00035342,2]
[310981392,1704839438762,-5591.99285972,0.00035441,2]
[310981393,1704839438810,-556.58684028,0.00035441,2]
[310981394,1704839438820,-153.84,0.00035485,2]
[310981395,1704839438830,-3256.61922332,0.00035531,10]
[310981396,1704839438851,-2887.05077668,0.00035531,10]
[310981397,1704839438861,-382.96632065,0.00035531,2]
[310981398,1704839438871,-382.96632065,0.00035531,2]
[310981399,1704839438882,-382.96632065,0.00035531,2]
[310981400,1704839438892,-382.96632065,0.00035531,2]
[310981401,1704839438902,-382.96632065,0.00035531,2]
[310981402,1704839438912,-406.91218155,0.00035531,2]
[310981403,1704839438924,-468.47300122,0.00035539,4]
[310981404,1704839438935,-201.00703917,0.00035539,4]
[310981405,1704839438945,-1000.0,0.00035539,4]
[310981406,1704839438957,-230.81725573,0.00035539,4]
[310981407,1704839438968,-155.0,0.00035539,2]
[310981408,1704839438978,-14049.43953688,0.0003554,2]
[310981409,1704839438991,-344.7584,0.00035541,2]
[310981410,1704839439001,-638.0874,0.00035541,2]
[310981411,1704839439011,-17247.48017236,0.00035541,2]
[310981412,1704839439024,-9663.62243737,0.00035541,2]
[310981413,1704839439037,-382.58126017,0.00035541,2]
[310981414,1704839439110,-10556.08390128,0.00035541,2]
[310981415,1704839439122,-445.72426929,0.00035541,2]
[310981416,1704839439135,-606.70110647,0.00035541,2]
[310981417,1704839439149,-1712.15,0.00035541,2]
[310981418,1704839439170,-3823.76231766,0.00035541,2]
[310981419,1704839439183,-9653.42588603,0.00035541,2]
[310981425,1704839439232,-1231.39904937,0.00035541,2]
[310981427,1704839439243,-152.11,0.00035616,2]
[310981429,1704839439252,-158.3,0.00035668,2]
[310981431,1704839439262,-159.31,0.00035683,2]
[310981433,1704839439272,-167.12,0.00035705,2]
[310981435,1704839439283,-2385.91,0.00035798,2]
[310981437,1704839439293,-166.34,0.00035867,2]
[310981439,1704839439302,-500.0,0.000359,2]
[310981441,1704839439313,-1000.0,0.000359,15]
[310981444,1704839439322,-156.37387414,0.00035924,2]
[310981446,1704839439332,-158.3,0.00035942,2]
[310981448,1704839439342,-639.37,0.00036151,2]
[310981450,1704839439351,-158.3,0.00036217,2]
[310981452,1704839439361,-673.83,0.000363,3]
[310981525,1704839439927,-673.83,0.000363,3]
[310981533,1704839439970,-673.83,0.000363,3]
[310981536,1704839439980,-673.83,0.000363,3]
[310981539,1704839439990,-673.83,0.000363,3]
[310981541,1704839440000,-673.83,0.000363,3]
[310981544,1704839440009,-673.83,0.000363,3]
[310981546,1704839440018,-673.83,0.000363,3]
[310981548,1704839440028,-673.83,0.000363,3]
[310981550,1704839440037,-673.83,0.000363,3]
[310981552,1704839440046,-673.83,0.000363,3]
[310981554,1704839440056,-673.83,0.000363,3]
[310981557,1704839440066,-673.83,0.000363,3]
[310981560,1704839440076,-673.83,0.000363,3]
[310981563,1704839440086,-673.83,0.000363,3]
[310981566,1704839440095,-673.83,0.000363,3]
[310981569,1704839440105,-673.83,0.000363,3]
[310981572,1704839440115,-673.83,0.000363,3]
[310981575,1704839440124,-673.83,0.000363,3]
[310981578,1704839440134,-673.83,0.000363,3]
[310981581,1704839440144,-683.74409673,0.000364,2]
[310981583,1704839440154,-683.74409656,0.000364,2]
[310981586,1704839440166,-683.74409656,0.000364,2]
[310981589,1704839440175,-683.74409656,0.000364,2]
[310981592,1704839440185,-158.3,0.00036491,2]
[310981594,1704839440194,-524.14,0.00036613,15]
[310981595,1704839440203,-683.74409656,0.00036669,2]
[310981596,1704839440215,-539.95,0.00036681,2]
[310981597,1704839440225,-158.3,0.00036765,2]
[310981598,1704839440235,-277.68,0.00036785,2]
[310981599,1704839440245,-153.84,0.00036919,2]
[310981600,1704839440255,-156.37387414,0.00036935,2]
[310981601,1704839440265,-683.74409656,0.00036958,2]
[310981602,1704839440274,-190.3679819,0.00036984,4]
[310981603,1704839440284,-1000.0,0.00036986,2]
[310981604,1704839440294,-667.33870884,0.00037,7]
[310981605,1704839440303,-650.0,0.00037,3]
[310981606,1704839440313,-158.3,0.0003704,2]
[310981607,1704839440323,-2385.91,0.00037075,2]
[310981608,1704839440333,-406.91218155,0.00037242,2]
[310981609,1704839440343,-683.74409656,0.00037246,2]
[310981610,1704839440354,-3884.477591,0.00037252,10]
[310981611,1704839440364,-1000.0,0.0003726,4]
[310981612,1704839440374,-150.53995043,0.00037262,5]
[310981613,1704839440384,-10000.0,0.00037268,120]
[310981614,1704839440394,-169.00772569,0.00037268,120]
[310981615,1704839440403,-285.08838629,0.00037268,120]
[310981616,1704839440413,-500.0,0.00037268,120]
[310981617,1704839440423,-480.03914908,0.00037268,120]
[310981620,1704839440432,-1937.236888,0.00037268,30]
[310981621,1704839440442,-304.856372,0.00037268,30]
[310981623,1704839440452,-1965.399855,0.00037268,30]
[310981625,1704839440464,-302.0,0.00037268,120]
[310981626,1704839440474,-300.0,0.00037268,61]
[310981627,1704839440484,-354.92484885,0.00037268,2]
[310981628,1704839440494,-158.3,0.00037314,2]
[310981630,1704839440504,-3884.477591,0.00037337,10]
[310981632,1704839440514,-270.54763253,0.00037347,7]
[310981633,1704839440524,-622.26768372,0.00037347,7]
[310981634,1704839440534,-1683.6073137,0.00037347,8]
[310981635,1704839440543,-1195.13410019,0.00037347,8]
[310981636,1704839440553,-192.55810906,0.00037347,5]
[310981637,1704839440562,-430.37266885,0.00037347,8]
[310981638,1704839440572,-281.95545653,0.00037347,8]
[310981639,1704839440582,-375.9382731,0.00037347,8]
[310981640,1704839440591,-886.49227796,0.00037347,8]
[310981641,1704839440600,-7768.955182,0.00037511,10]
[310981642,1704839440610,-4478.69862864,0.00037521,4]
[310981643,1704839440619,-769.06899585,0.00037521,4]
[310981644,1704839440629,-530.31943851,0.00037522,2]
[310981645,1704839440639,-496.66,0.00037534,6]
[310981646,1704839440649,-683.74409656,0.00037535,2]
[310981647,1704839440659,-3884.477591,0.00037555,10]
[310981648,1704839440669,-4470.15,0.00037566,2]
[310981649,1704839440679,-158.3,0.00037589,2]
[310981650,1704839440692,-3884.477591,0.00037688,10]
[310981651,1704839440709,-750.0,0.000378,2]
[310981652,1704839440724,-683.74409656,0.00037823,2]
[310981653,1704839440735,-158.3,0.00037863,2]
[310981654,1704839440745,-159.31,0.00037921,2]
[310981655,1704839440756,-156.37387414,0.00037946,2]
[310981656,1704839440766,-1087.27750894,0.00038051,10]
[310981657,1704839440777,-683.74409656,0.00038111,2]
[310981658,1704839440787,-157.44418418,0.00038113,7]
[310981659,1704839440796,-406.91218155,0.00038131,2]
[310981660,1704839440807,-158.3,0.00038137,2]
[310981661,1704839440816,-34960.298319,0.00038141,10]
[310981662,1704839440827,-238.34360227,0.00038151,11]
[310981663,1704839440836,-16102.85966202,0.00038151,12]
[310981664,1704839440846,-10181.46889355,0.00038151,12]
[310981665,1704839440856,-2799.90394573,0.00038151,11]
[310981666,1704839440867,-3884.477591,0.00038342,10]
[310981667,1704839440877,-2385.91,0.00038352,2]
[310981668,1704839440888,-153.84,0.00038353,2]
[310981669,1704839440898,-182.4011,0.00038398,8]
[310981670,1704839440910,-683.74409656,0.000384,2]
[310981671,1704839440924,-158.3,0.00038412,2]
[310981672,1704839440935,-202.0,0.00038509,2]
[310981673,1704839440946,-234.4011,0.00038598,8]
[310981674,1704839440957,-200.0,0.00038615,15]
[310981675,1704839440973,-158.3,0.00038686,2]
[310981676,1704839440985,-683.74409656,0.00038688,2]
[310981677,1704839440995,-151.99,0.00038746,2]
[310981678,1704839441006,-234.4011,0.00038798,8]
[310981679,1704839441017,-3884.477591,0.00038814,10]
[310981680,1704839441027,-528.88870238,0.00038824,2]
[310981681,1704839441038,-248.89004839,0.00038846,2]
[310981682,1704839441048,-2145.06902921,0.00038846,12]
[310981683,1704839441059,-97111.939775,0.00038914,10]
[310981684,1704839441069,-150.53995043,0.00038925,7]
[310981685,1704839441080,-34960.298319,0.00038925,10]
[310981686,1704839441090,-150.53995043,0.00038934,5]
[310981687,1704839441100,-384191.123197,0.00038934,3]
[310981688,1704839441110,-257460.80672978,0.00038944,2]
[310981689,1704839441127,-356335.68260066,0.00038944,2]
[310981690,1704839441137,-156.37387414,0.00038957,2]
[310981691,1704839441148,-158.3,0.0003896,2]
[310981692,1704839441158,-683.74409656,0.00038976,2]
[310981693,1704839441168,-234.4011,0.00038998,8]
[310981694,1704839441178,-700.0,0.00039,3]
[310981695,1704839441188,-673.83,0.00039,3]
[310981696,1704839441198,-673.83,0.00039,3]
[310981697,1704839441208,-673.83,0.00039,3]
[310981698,1704839441221,-673.83,0.00039,3]
[310981699,1704839441230,-673.83,0.00039,3]
[310981700,1704839441240,-673.83,0.00039,3]
[310981701,1704839441251,-673.83,0.00039,3]
[310981702,1704839441261,-673.83,0.00039,3]
[310981703,1704839441271,-673.83,0.00039,3]
[310981704,1704839441281,-673.83,0.00039,3]
[310981705,1704839441291,-673.83,0.00039,3]
[310981706,1704839441301,-673.83,0.00039,3]
[310981707,1704839441310,-673.83,0.00039,3]
[310981708,1704839441320,-673.83,0.00039,3]
[310981709,1704839441330,-673.83,0.00039,3]
[310981710,1704839441357,-673.83,0.00039,3]
[310981711,1704839441376,-673.83,0.00039,3]
[310981712,1704839441386,-673.83,0.00039,3]
[310981713,1704839441395,-673.83,0.00039,3]
[310981714,1704839441405,-673.83,0.00039,3]
[310981715,1704839441414,-871.33907656,0.00039036,4]
[310981716,1704839441427,-277.68,0.00039049,2]
[310981717,1704839441438,-2145.06902913,0.00039086,12]
[310981719,1704839441448,-234.4011,0.00039198,8]
[310981721,1704839441459,-158.3,0.00039235,2]
[310981722,1704839441472,-2145.06902913,0.00039327,13]
[310981723,1704839441482,-180.0,0.0003936,2]
[310981724,1704839441492,-234.4011,0.00039398,8]
[310981725,1704839441503,-150.53995043,0.00039414,8]
[310981727,1704839441513,-2266.0,0.00039434,2]
[310981729,1704839441523,-1027.0,0.00039434,2]
[310981731,1704839441533,-317.0,0.00039434,2]
[310981733,1704839441543,-881.0,0.00039434,2]
[310981734,1704839441553,-3185.21463735,0.00039447,2]
[310981735,1704839441564,-620.68243241,0.00039447,2]
[310981736,1704839441574,-2145.06902913,0.00039567,13]
[310981738,1704839441584,-234.4011,0.00039598,8]
[310981740,1704839441594,-2385.91,0.0003963,2]
[310981742,1704839441604,-800.0,0.00039668,10]
[310981744,1704839441614,-414.44109058,0.00039715,5]
[310981746,1704839441624,-500.0,0.00039725,10]
[310981748,1704839441634,-202.0,0.00039773,5]
[310981750,1704839441645,-153.84,0.00039786,2]
[310981752,1704839441656,-234.4011,0.00039798,8]
[310981754,1704839441665,-2145.06902913,0.00039807,13]
[310981756,1704839441676,-213.56984508,0.00039858,4]
[310981759,1704839441687,-152.66700614,0.00039915,7]
[310981761,1704839441697,-156.37387414,0.00039967,2]
[310981763,1704839441707,-234.4011,0.00039998,8]
[310981765,1704839441719,-54181.40254981,0.0004,4]
[310981767,1704839441730,-2145.06902913,0.00040047,13]
[310981769,1704839441739,-152.11,0.00040068,2]
[310981771,1704839441749,-159.31,0.00040158,2]
[310981773,1704839441759,-639.37,0.00040168,2]
[310981774,1704839441769,-234.4011,0.00040198,8]
[310981775,1704839441780,-2145.06902913,0.00040288,14]
[310981776,1704839441790,-155.46490209,0.00040296,7]
[310981777,1704839441800,-524.14,0.00040349,15]
[310981778,1704839441810,-157.44418418,0.00040375,7]
[310981779,1704839441819,-152.66700614,0.00040395,7]
[310981780,1704839441829,-234.4011,0.00040398,8]
[310981781,1704839441839,-539.95,0.00040402,2]
[310981782,1704839441849,-150.0,0.00040521,2]
[310981783,1704839441858,-2145.06902913,0.00040528,14]
[310981784,1704839441868,-234.4011,0.00040598,8]
[310981785,1704839441878,-165.04,0.000406,7]
[310981786,1704839441887,-150.0,0.00040663,2]
[310981787,1704839441897,-2145.06902913,0.00040768,14]
[310981788,1704839441907,-234.4011,0.00040798,8]
[310981789,1704839441917,-500.0,0.00040821,10]
[310981790,1704839441927,-528.8887023,0.00040824,5]
[310981791,1704839441937,-157.44418418,0.00040959,7]
[310981792,1704839441947,-200.0,0.00040971,20]
[310981793,1704839441960,-800.0,0.00040971,10]
[310981794,1704839441971,-200.0,0.00040975,2]
[310981795,1704839441982,-156.37387414,0.00040978,2]
[310981796,1704839441992,-96047.7807993,0.00040985,6]
[310981797,1704839442002,-2002.814,0.00040992,10]
[310981798,1704839442013,-2000.0,0.00040995,4]
[310981799,1704839442023,-7500.0,0.00040995,7]
[310981800,1704839442033,-5765.1709633,0.00040995,5]
[310981801,1704839442047,-8333.13137547,0.00040995,5]
[310981802,1704839442175,-917.06,0.00040995,5]
[310981803,1704839442187,-13787.3196,0.00040995,5]
[310981804,1704839442199,-2094.01118884,0.00040995,5]
[310981805,1704839442983,-378.42877155,0.00039265,2]
[310981806,1704839442995,-305.31532501,0.00039265,2]
[310981807,1704839443005,-24658.30687239,0.00040995,5]
[310981808,1704839443014,-234.4011,0.00040998,8]
[310981809,1704839443023,-8750.0,0.00041,5]
[310981810,1704839443032,-150.0,0.00041,22]
[310981811,1704839443054,-247.51821648,0.00041,5]
[310981812,1704839443063,-750.0,0.00041,3]
[310981813,1704839443073,-1000.0,0.00041,2]
[310981814,1704839443083,-150.0,0.00041008,2]
[310981815,1704839443093,-2145.06902913,0.00041008,15]
[310981816,1704839443103,-292.22665966,0.00041017,2]
[310981817,1704839443112,-202.0,0.00041038,10]
[310981818,1704839443121,-150.0,0.00041063,2]
[310981819,1704839443131,-221.86417377,0.00041071,2]
[310981820,1704839443140,-155.46490209,0.00041081,7]
[310981821,1704839443149,-666.0,0.00041082,2]
[310981823,1704839443158,-150.0,0.00041082,2]
[310981825,1704839443167,-300.0,0.00041082,7]
[310981827,1704839443177,-374.88280177,0.00041082,12]
[310981829,1704839443186,-150.53995043,0.00041083,5]
[310981831,1704839443195,-150.53995043,0.00041085,4]
[310981833,1704839443205,-4536.14480462,0.00041085,7]
[310981834,1704839443250,-2219.93299999,0.00041085,7]
[310981835,1704839443263,-42458.91401959,0.00041085,7]
[310981866,1704839444125,-466.078813,0.00041085,7]
[310981870,1704839445009,-500.0,0.000351,2]
[310981871,1704839445018,-27.67889174,0.0003534,4]
[310981872,1704839445031,-440.79410948,0.0003534,4]
[310981873,1704839445041,-11435.37471903,0.00041085,7]
[310981874,1704839445085,-3995.76952206,0.00041085,7]
[310981875,1704839445098,-7351.75677482,0.00041085,7]
[310981876,1704839445109,-10331.16409795,0.00041085,7]
[310981877,1704839445186,-735.12129388,0.00041085,7]
[310981878,1704839445198,-4955.57128851,0.00041085,7]
[310981879,1704839445211,-815.88988599,0.00041085,7]
[310981880,1704839445225,-48563.422,0.00041085,7]
[310981881,1704839445236,-311.54207616,0.00041085,7]
[310981882,1704839445248,-455.488698,0.00041085,7]
[310981883,1704839445264,-2712.84734229,0.00041085,7]
[310981884,1704839445276,-1000.05245018,0.00041085,7]
[310981885,1704839445295,-49750.49081293,0.00041085,7]
[310981886,1704839445305,-554.51214719,0.00041091,4]
[310981887,1704839445314,-313.44611819,0.00041091,4]
[310981888,1704839445323,-2625.89787418,0.00041091,2]
[310981889,1704839445333,-540.90072547,0.00041091,4]
[310981890,1704839445343,-251.99880636,0.00041091,4]
[310981891,1704839445352,-416.54397333,0.00041091,4]
[310981892,1704839445362,-29451.84214617,0.00041091,4]
[310981893,1704839445371,-278.31410173,0.00041091,4]
[310981894,1704839445381,-190.92140624,0.00041091,4]
[310981895,1704839445391,-359.53226998,0.00041091,4]
[310981896,1704839445400,-1653.64166884,0.00041093,4]
[310981897,1704839445410,-1330.78963775,0.00041093,4]
[310981898,1704839445419,-3846.80508323,0.00041093,4]
[310981899,1704839445429,-2500.0,0.00041093,2]
[310981900,1704839445438,-233.40745609,0.00041093,4]
[310981901,1704839445448,-155.0,0.00041093,4]
[310981902,1704839445457,-161.81771881,0.00041093,4]
[310981903,1704839445468,-549.85441435,0.00041093,4]
[310981904,1704839445479,-1728.20414092,0.00041093,4]
[310981905,1704839445488,-566.22863671,0.00041093,2]
[310981906,1704839445497,-155.0,0.00041093,4]
[310981907,1704839445506,-4084.44330794,0.00041093,4]
[310981908,1704839445516,-286.09284471,0.00041093,4]
[310981909,1704839445526,-12835.67520083,0.00041093,2]
[310981910,1704839445536,-863.27028027,0.00041094,4]
[310981911,1704839445547,-2482.61199055,0.00041094,5]
[310981912,1704839445556,-500.0,0.00041095,30]
[310981913,1704839445566,-500.0,0.00041095,30]
[310981914,1704839445575,-500.0,0.00041095,30]
[310981915,1704839445585,-500.0,0.00041095,30]
[310981916,1704839445595,-561.54,0.00041095,30]
[310981917,1704839445605,-524.33538659,0.00041095,30]
[310981918,1704839445614,-500.0,0.00041095,30]
[310981919,1704839445624,-500.0,0.00041095,30]
[310981920,1704839445633,-500.0,0.00041095,30]
[310981921,1704839445642,-500.0,0.00041095,30]
[310981922,1704839445652,-500.0,0.00041095,30]
[310981923,1704839445662,-500.0,0.00041095,30]
[310981924,1704839445674,-500.0,0.00041095,30]
[310981925,1704839445684,-500.0,0.00041095,30]
[310981926,1704839445694,-500.0,0.00041095,30]
[310981927,1704839445704,-500.0,0.00041095,30]
[310981928,1704839445713,-500.0,0.00041095,30]
[310981929,1704839445724,-699.33,0.00041095,30]
[310981930,1704839445733,-500.0,0.00041095,30]
[310981931,1704839445742,-500.0,0.00041095,30]
[310981932,1704839445751,-500.0,0.00041095,30]
[310981933,1704839445760,-500.0,0.00041095,30]
[310981934,1704839445770,-500.0,0.00041095,30]
[310981935,1704839445779,-500.0,0.00041095,7]
[310981936,1704839445788,-500.0,0.00041095,30]
[310981937,1704839445798,-500.0,0.00041095,30]
[310981938,1704839445807,-500.0,0.00041095,30]
[310981939,1704839445816,-500.0,0.00041095,30]
[310981944,1704839445986,-500.0,0.00041095,30]
[310981945,1704839446010,-153.26296521,0.00041095,30]
[310981947,1704839446019,-525.01,0.00041095,30]
[310981949,1704839446029,-500.0,0.00041095,7]
[310981951,1704839446038,-500.0,0.00041095,30]
[310981952,1704839446047,-500.0,0.00041095,30]
[310981953,1704839446057,-566.9,0.00041095,30]
[310981954,1704839446067,-625.26388913,0.00041095,30]
[310981955,1704839446076,-500.0,0.00041095,30]
[310981956,1704839446086,-500.0,0.00041095,30]
[310981957,1704839446096,-510.38723626,0.00041095,30]
[310981958,1704839446105,-500.0,0.00041095,30]
[310981959,1704839446115,-500.0,0.00041095,30]
[310981960,1704839446125,-500.0,0.00041095,30]
[310981961,1704839446134,-500.0,0.00041095,30]
[310981962,1704839446144,-500.0,0.00041095,30]
[310981963,1704839446153,-536.40277172,0.00041095,30]
[310981964,1704839446163,-500.0,0.00041095,30]
[310981965,1704839446172,-278.17,0.00041095,30]
[310981966,1704839446182,-759.91,0.00041095,30]
[310981967,1704839446191,-500.0,0.00041095,30]
[310981968,1704839446201,-500.0,0.00041095,30]
[310981969,1704839446210,-500.0,0.00041095,30]
[310981970,1704839446222,-500.0,0.00041095,30]
[310981971,1704839446232,-562.85,0.00041095,30]
[310981972,1704839446241,-500.0,0.00041095,30]
[310981973,1704839446250,-500.0,0.00041095,30]
[310981974,1704839446260,-214.53437676,0.00041095,30]
[310981975,1704839446269,-500.0,0.00041095,30]
[310981976,1704839446279,-500.0,0.00041095,30]
[310981977,1704839446289,-500.0,0.00041095,30]
[310981978,1704839446298,-500.0,0.00041095,30]
[310981979,1704839446308,-500.0,0.00041095,30]
[310981980,1704839446318,-500.0,0.00041095,30]
[310981981,1704839446327,-500.0,0.00041095,30]
[310981982,1704839446337,-500.0,0.00041095,30]
[310981983,1704839446346,-500.0,0.00041095,30]
[310981984,1704839446356,-680.27,0.00041095,30]
[310981985,1704839446365,-500.0,0.00041095,30]
[310981986,1704839446374,-708.79,0.00041095,30]
[310981987,1704839446383,-500.0,0.00041095,30]
[310981988,1704839446392,-500.0,0.00041095,30]
[310981989,1704839446401,-500.0,0.00041095,30]
[310981990,1704839446411,-500.0,0.00041095,30]
[310981991,1704839446420,-500.0,0.00041095,30]
[310981992,1704839446430,-500.0,0.00041095,30]
[310981993,1704839446439,-500.0,0.00041095,30]
[310981994,1704839446448,-500.0,0.00041095,30]
[310981995,1704839446457,-500.0,0.00041095,30]
[310981996,1704839446469,-500.0,0.00041095,30]
[310981997,1704839446478,-500.0,0.00041095,30]
[310981998,1704839446487,-500.0,0.00041095,30]
[310981999,1704839446496,-500.0,0.00041095,30]
[310982000,1704839446505,-777.95,0.00041095,30]
[310982001,1704839446514,-500.0,0.00041095,30]
[310982002,1704839446523,-500.0,0.00041095,30]
[310982003,1704839446533,-500.0,0.00041095,30]
[310982004,1704839446543,-194.70518338,0.00041095,30]
[310982005,1704839446552,-500.0,0.00041095,30]
[310982006,1704839446561,-500.0,0.00041095,30]
[310982007,1704839446570,-500.0,0.00041095,30]
[310982008,1704839446579,-500.0,0.00041095,30]
[310982009,1704839446589,-500.0,0.00041095,30]
[310982010,1704839446598,-500.0,0.00041095,30]
[310982011,1704839446607,-697.56,0.00041095,30]
[310982012,1704839446616,-500.0,0.00041095,30]
[310982013,1704839446626,-500.0,0.00041095,2]
[310982014,1704839446635,-163.2557745,0.00041095,30]
[310982015,1704839446645,-500.0,0.00041095,30]
[310982016,1704839446654,-500.0,0.00041095,30]
[310982017,1704839446664,-851.91,0.00041095,30]
[310982018,1704839446677,-500.0,0.00041095,30]
[310982019,1704839446686,-500.0,0.00041095,30]
[310982020,1704839446696,-500.0,0.00041095,30]
[310982021,1704839446705,-500.0,0.00041095,30]
[310982022,1704839446715,-500.0,0.00041095,30]
[310982023,1704839446725,-500.0,0.00041095,30]
[310982024,1704839446734,-500.0,0.00041095,30]
[310982025,1704839446743,-500.0,0.00041095,30]
[310982026,1704839446752,-446.24516849,0.00041095,30]
[310982027,1704839446763,-755.03,0.00041095,30]
[310982028,1704839446772,-510.71,0.00041095,30]
[310982029,1704839446782,-500.0,0.00041095,30]
[310982030,1704839446792,-500.0,0.00041095,30]
[310982031,1704839446803,-500.0,0.00041095,30]
[310982032,1704839446814,-500.0,0.00041095,30]
[310982033,1704839446823,-202.83090641,0.00041095,30]
[310982034,1704839446834,-500.0,0.00041095,30]
[310982035,1704839446843,-500.0,0.00041095,30]
[310982036,1704839446854,-500.0,0.00041095,30]